bitfinex-derivatives/quotes_BTCF0:USTF0_20230702
["timestamp","ask_amount","ask_price","bid_price","bid_amount"]
[1688338244261,0.03707914,30633.0,30630.0,0.07687856]
[1688338244469,0.03707914,30633.0,30630.0,0.09646856]
[1688338244470,0.21461444,30632.0,30630.0,0.09646856]
[1688338244661,0.21948658,30632.0,30631.0,0.247]
[1688338244858,0.23771627,30632.0,30631.0,0.266589]
[1688338245073,0.21948658,30632.0,30631.0,0.266589]
[1688338245575,0.09646851,30632.0,30631.0,0.266589]
[1688338246363,0.07823882,30632.0,30631.0,0.266589]
[1688338246981,0.02446014,30632.0,30631.0,0.266589]
[1688338247176,0.21959112,30632.0,30631.0,0.266589]
[1688338247575,0.20000312,30632.0,30631.0,0.266589]
[1688338247973,0.2279874,30634.0,30631.0,0.874389]
[1688338248170,0.19531181,30634.0,30633.0,0.247]
[1688338248430,0.19531181,30634.0,30633.0,0.266588]
[1688338248585,0.19512143,30635.0,30633.0,0.512288]
[1688338248866,0.30622435,30637.0,30635.0,0.019586]
[1688338248867,0.19511666,30636.0,30635.0,0.019586]
[1688338249181,0.32580935,30637.0,30636.0,0.05439551]
[1688338249479,0.37308053,30637.0,30636.0,0.56798151]
[1688338249678,0.06718053,30637.0,30636.0,0.513586]
[1688338252473,0.06718053,30637.0,30636.0,0.266586]
[1688338252888,0.00032435,30637.0,30636.0,0.266586]
[1688338253982,0.01990935,30637.0,30636.0,0.266586]
[1688338255581,0.02460761,30637.0,30636.0,0.2928563]
[1688338257676,0.07187655,30637.0,30636.0,0.2928563]
[1688338259101,0.02460761,30637.0,30636.0,0.2928563]
[1688338259283,0.07187632,30637.0,30636.0,0.2928563]
[1688338260585,0.25252424,30637.0,30636.0,0.2928563]
[1688338260883,0.29979295,30637.0,30636.0,0.2928563]
[1688338261582,0.07187632,30637.0,30636.0,0.2928563]
[1688338262570,0.2525975,30637.0,30636.0,0.266586]
[1688338262880,0.31871566,30637.0,30636.0,0.266586]
[1688338263280,0.09072577,30637.0,30636.0,0.266586]
[1688338263575,0.07187632,30637.0,30636.0,0.266586]
[1688338264223,0.29989216,30637.0,30636.0,0.266586]
[1688338265290,0.29992106,30637.0,30636.0,0.266586]
[1688338265878,0.24774526,30637.0,30636.0,0.266586]
[1688338266081,0.20047879,30637.0,30636.0,0.266586]
[1688338267169,0.20046971,30637.0,30636.0,0.266586]
[1688338268188,0.05228818,30637.0,30636.0,0.266586]
[1688338269987,0.07187318,30637.0,30636.0,0.266586]
[1688338270211,0.29991792,30637.0,30636.0,0.266586]
[1688338273190,0.07187318,30637.0,30636.0,0.266586]
[1688338277992,0.05228818,30637.0,30636.0,0.266586]
[1688338279993,0.31225887,30637.0,30636.0,0.266586]
[1688338281801,0.019585,30638.0,30636.0,0.511986]
[1688338281802,0.22799951,30638.0,30636.0,0.511986]
[1688338282094,0.01896883,30637.0,30636.0,0.019586]
[1688338282294,0.19543156,30637.0,30636.0,0.513586]
[1688338282554,0.22799951,30638.0,30636.0,0.513586]
[1688338282709,0.22799951,30638.0,30637.0,0.4924]
[1688338282901,0.22799951,30638.0,30637.0,0.511985]
[1688338286692,0.22799951,30638.0,30637.0,0.264985]
[1688338287836,0.22799951,30639.0,30637.0,0.264985]
[1688338288002,0.22799951,30639.0,30638.0,0.6078]
[1688338288212,0.22799951,30639.0,30638.0,0.627385]
[1688338289950,0.27526166,30639.0,30638.0,0.627385]
[1688338290412,0.40648037,30642.0,30638.0,0.627385]
[1688338290413,0.25997069,30642.0,30638.0,0.874385]
[1688338290595,0.32748524,30642.0,30641.0,0.2458]
[1688338290798,0.32748524,30642.0,30641.0,0.265383]
[1688338292306,0.27955269,30642.0,30641.0,0.019583]
[1688338292504,0.10532624,30642.0,30641.0,0.019583]
[1688338292699,0.12417569,30642.0,30641.0,0.019583]
[1688338293398,0.41751355,30642.0,30641.0,0.019583]
[1688338293796,0.39928386,30642.0,30641.0,0.019583]
[1688338294198,0.38043441,30642.0,30641.0,0.266583]
[1688338295199,0.36085241,30642.0,30641.0,0.266583]
[1688338295446,0.29333786,30642.0,30641.0,0.266583]
[1688338295699,0.36085241,30642.0,30641.0,0.266583]
[1688338295902,0.29333786,30642.0,30641.0,0.266583]
[1688338297204,0.06751455,30642.0,30641.0,0.266583]
[1688338297406,0.29333786,30642.0,30641.0,0.266583]
[1688338298203,0.06751455,30642.0,30641.0,0.627383]
[1688338298398,0.11477351,30642.0,30641.0,0.627383]
[1688338300205,0.11477351,30642.0,30641.0,0.65398563]
[1688338300609,0.30802517,30642.0,30641.0,0.65398563]
[1688338300804,0.32828076,30642.0,30641.0,0.65398563]
[1688338301004,0.30802517,30642.0,30641.0,0.65398563]
[1688338301402,0.04725896,30642.0,30641.0,0.65398563]
[1688338302307,0.2607021,30645.0,30644.0,1.0]
[1688338302625,0.06750739,30645.0,30644.0,0.640751]
[1688338304016,0.08708739,30645.0,30644.0,0.640751]
[1688338305113,0.06750739,30645.0,30644.0,0.640751]
[1688338305615,0.26062829,30645.0,30644.0,0.640751]
[1688338305802,0.048948,30647.0,30644.0,0.886451]
[1688338305803,0.06750739,30647.0,30644.0,0.886451]
[1688338306018,0.06750739,30646.0,30644.0,0.393751]
[1688338306211,0.63981872,30649.0,30645.0,0.247]
[1688338306413,0.63981872,30649.0,30646.0,0.019579]
[1688338306414,0.048949,30647.0,30646.0,0.019579]
[1688338306714,0.11645762,30647.0,30646.0,0.266579]
[1688338306921,0.071592,30647.0,30646.0,0.266579]
[1688338308710,0.071592,30647.0,30646.0,0.32097451]
[1688338308907,0.00408338,30647.0,30646.0,0.32097451]
[1688338309229,0.22790968,30647.0,30646.0,0.32097451]
[1688338309515,0.00474256,30647.0,30646.0,0.32097451]
[1688338309724,0.00474256,30647.0,30646.0,0.56657451]
[1688338309725,0.00474261,30647.0,30646.0,0.56657451]
[1688338309915,0.44939462,30652.0,30646.0,0.56657451]
[1688338310111,0.31221872,30652.0,30651.0,0.247]
[1688338310318,0.06750018,30652.0,30651.0,0.266576]
[1688338312112,0.08707618,30652.0,30651.0,0.266576]
[1688338314125,0.4737369,30654.0,30653.0,0.247]
[1688338314126,0.1175999,30654.0,30653.0,0.247]
[1688338314308,0.79296094,30660.0,30655.0,1.0]
[1688338314519,0.019572,30658.0,30656.0,0.265273]
[1688338314721,0.48074222,30660.0,30656.0,0.31966851]
[1688338315030,0.73825072,30662.0,30656.0,0.92746851]
[1688338315031,0.31221872,30662.0,30656.0,0.92746851]
[1688338315325,0.11422,30665.0,30662.0,0.2463]
[1688338315326,0.019567,30665.0,30662.0,0.2463]
[1688338315559,0.019567,30665.0,30664.0,0.247]
[1688338315713,0.46607416,30665.0,30664.0,0.247]
[1688338316320,0.50392361,30665.0,30664.0,0.247]
[1688338316519,0.52292361,30665.0,30664.0,0.247]
[1688338316720,0.50392361,30665.0,30664.0,0.247]
[1688338317117,0.51078463,30665.0,30664.0,0.247]
[1688338317316,0.52978463,30665.0,30664.0,0.247]
[1688338317517,0.46230716,30665.0,30664.0,0.247]
[1688338318021,0.42522802,30665.0,30664.0,0.266568]
[1688338318632,0.06641957,30665.0,30664.0,0.266568]
[1688338320025,0.42721957,30665.0,30664.0,0.266568]
[1688338321719,0.46429871,30665.0,30664.0,0.266568]
[1688338322421,0.44606902,30665.0,30664.0,0.266568]
[1688338323225,0.46429871,30665.0,30664.0,0.266568]
[1688338323432,0.44606902,30665.0,30664.0,0.266568]
[1688338324521,0.42721957,30665.0,30664.0,0.266568]
[1688338325224,0.56360169,30668.0,30664.0,0.266568]
[1688338325225,0.3057,30671.0,30664.0,1.266568]
[1688338325429,0.019563,30673.0,30671.0,0.247]
[1688338325430,0.13704831,30673.0,30671.0,0.247]
[1688338325651,0.03779269,30673.0,30672.0,0.266463]
[1688338325922,0.633863,30673.0,30672.0,0.2458]
[1688338326201,0.67094214,30673.0,30672.0,0.2458]
[1688338326323,0.67094214,30673.0,30671.0,0.0157397]
[1688338326324,0.0565,30672.0,30671.0,0.0157397]
[1688338326527,0.0653,30670.0,30665.0,0.019567]
[1688338326724,0.6058,30666.0,30663.0,0.019568]
[1688338326921,0.247,30664.0,30663.0,0.019568]
[1688338327129,0.266568,30664.0,30663.0,0.019568]
[1688338327425,0.30364714,30664.0,30663.0,0.019568]
[1688338327621,0.28541745,30664.0,30663.0,0.019568]
[1688338327833,0.30364714,30664.0,30663.0,0.019568]
[1688338328029,0.66444714,30664.0,30662.0,0.02620792]
[1688338328305,0.66444714,30664.0,30660.0,0.02005918]
[1688338328306,0.28407914,30663.0,30660.0,0.02005918]
[1688338328540,0.62737,30661.0,30660.0,0.02005918]
[1688338328741,0.62737,30661.0,30660.0,0.00048918]
[1688338328742,0.64621945,30661.0,30660.0,0.00048918]
[1688338328931,0.66444914,30661.0,30656.0,0.247]
[1688338329133,0.6078,30657.0,30653.0,0.247]
[1688338329354,0.6058,30654.0,30653.0,0.247]
[1688338329531,0.6058,30654.0,30650.0,0.019577]
[1688338329532,0.625374,30654.0,30650.0,0.019577]
[1688338329734,0.6069,30651.0,30650.0,0.019577]
[1688338329927,0.64470569,30651.0,30650.0,0.019577]
[1688338330135,0.41745514,30651.0,30650.0,0.266477]
[1688338331929,0.41745514,30651.0,30650.0,0.2469]
[1688338332429,0.66445514,30651.0,30649.0,0.24748936]
[1688338332645,0.30365614,30650.0,30649.0,0.24748936]
[1688338332832,0.66445614,30650.0,30649.0,0.00048936]
[1688338336534,0.66445614,30650.0,30641.0,1.07665828]
[1688338336535,0.03707914,30649.0,30642.0,0.265381]
[1688338336759,0.9674,30643.0,30642.0,0.265381]
[1688338336938,1.02406014,30643.0,30642.0,0.265381]
[1688338338340,0.3608,30643.0,30642.0,0.265381]
[1688338338878,0.37902969,30643.0,30642.0,0.265381]
[1688338339019,0.64487914,30643.0,30642.0,0.265381]
[1688338339228,0.66446014,30643.0,30642.0,0.265381]
[1688338339426,1.02526014,30643.0,30642.0,0.019581]
[1688338339660,1.02526014,30643.0,30640.0,0.048958]
[1688338339830,0.2461,30641.0,30640.0,0.048958]
[1688338340035,0.265683,30641.0,30640.0,0.048958]
[1688338340438,0.30276214,30641.0,30640.0,0.048958]
[1688338341727,0.03843245,30641.0,30640.0,0.295958]
[1688338342140,0.019583,30641.0,30640.0,0.295958]
[1688338342326,0.03781269,30641.0,30640.0,0.295958]
[1688338342542,0.019583,30641.0,30640.0,0.295958]
[1688338342928,0.05666214,30641.0,30640.0,0.295958]
[1688338343635,0.30276214,30641.0,30640.0,0.295958]
[1688338352538,0.30366214,30641.0,30640.0,0.295958]
[1688338355052,0.770556,30643.0,30640.0,0.295958]
[1688338355243,0.770556,30643.0,30642.0,0.247]
[1688338355244,0.3608,30643.0,30642.0,0.247]
[1688338355440,0.245,30644.0,30642.0,0.019582]
[1688338355777,0.266581,30643.0,30642.0,0.019582]
[1688338356142,0.30366014,30643.0,30642.0,0.019582]
[1688338362044,0.295954,30644.0,30642.0,0.266582]
[1688338362317,0.295954,30644.0,30643.0,0.247]
[1688338362543,0.419544,30645.0,30643.0,0.266581]
[1688338362843,0.3608,30645.0,30644.0,0.265381]
[1688338363042,0.00048952,30646.0,30644.0,0.265381]
[1688338363245,0.02006952,30646.0,30645.0,0.247]
[1688338363456,0.62696952,30646.0,30645.0,0.01958]
[1688338363953,0.66404866,30646.0,30645.0,0.01958]
[1688338365848,0.66404866,30646.0,30643.0,0.295953]
[1688338366038,0.247,30644.0,30643.0,0.247]
[1688338366248,0.266581,30644.0,30643.0,0.266581]
[1688338366740,0.30366014,30644.0,30643.0,0.266581]
[1688338371558,0.28543045,30644.0,30643.0,0.266581]
[1688338371854,0.30366014,30644.0,30643.0,0.266581]
[1688338373147,0.28543045,30644.0,30643.0,0.266581]
[1688338373348,0.30366014,30644.0,30643.0,0.266581]
[1688338373554,0.30366014,30644.0,30643.0,0.019581]
[1688338373765,0.28543045,30644.0,30643.0,0.019581]
[1688338374081,0.266581,30644.0,30643.0,0.019581]
[1688338374252,0.247,30644.0,30643.0,0.019581]
[1688338376747,0.42003052,30646.0,30645.0,0.01958]
[1688338376748,0.00048952,30646.0,30645.0,0.01958]
[1688338376944,0.00048952,30646.0,30645.0,0.26658]
[1688338377350,0.00048952,30646.0,30645.0,0.28542945]
[1688338378062,0.00048952,30646.0,30645.0,0.26658]
[1688338378063,0.28391797,30646.0,30645.0,0.26658]
[1688338378364,0.28591797,30646.0,30645.0,0.01958]
[1688338378758,0.30414766,30646.0,30645.0,0.01958]
[1688338380660,0.28591797,30646.0,30645.0,0.01958]
[1688338380874,0.30414766,30646.0,30645.0,0.01958]
[1688338382054,0.28591797,30646.0,30645.0,0.01958]
[1688338383662,0.24748952,30646.0,30645.0,0.26658]
[1688338384371,0.24748952,30646.0,30645.0,0.28542945]
[1688338384558,0.00048952,30646.0,30645.0,0.28542945]
[1688338386376,0.37850167,30651.0,30645.0,0.29192945]
[1688338386556,0.37850167,30651.0,30650.0,0.2458]
[1688338386770,0.37850167,30651.0,30650.0,0.265377]
[1688338387068,0.11755834,30651.0,30650.0,0.34512196]
[1688338387458,0.26094333,30653.0,30650.0,0.34512196]
[1688338387666,0.26094333,30653.0,30652.0,0.247]
[1688338387864,0.26094333,30653.0,30652.0,0.28542545]
[1688338388471,0.56459747,30653.0,30652.0,0.019576]
[1688338388663,0.37114032,30653.0,30652.0,0.019576]
[1688338389178,0.63181775,30653.0,30652.0,0.019576]
[1688338390670,0.61224275,30653.0,30651.0,0.5594]
[1688338390874,0.28407914,30652.0,30651.0,0.5594]
[1688338391373,0.26584945,30652.0,30651.0,0.5594]
[1688338391557,0.247,30652.0,30651.0,0.5594]
[1688338391760,0.26116682,30654.0,30651.0,0.5594]
[1688338391964,0.00048939,30654.0,30653.0,0.247]
[1688338392366,0.00048939,30654.0,30653.0,0.26584945]
[1688338395062,0.00048939,30654.0,30653.0,0.51144945]
[1688338395868,0.00048939,30654.0,30653.0,0.51794945]
[1688338396073,0.11755834,30659.0,30653.0,0.4991]
[1688338396364,0.11755834,30659.0,30658.0,0.247]
[1688338396771,0.62147743,30662.0,30658.0,0.26584945]
[1688338396971,0.62147743,30662.0,30656.0,0.05439551]
[1688338396972,0.62147743,30662.0,30661.0,0.2449]
[1688338397669,0.37902969,30662.0,30661.0,0.2449]
[1688338398271,0.52590712,30663.0,30661.0,0.2449]
[1688338398483,0.52590712,30663.0,30658.0,1.00048921]
[1688338398484,0.50767743,30663.0,30662.0,0.26464945]
[1688338398665,0.247,30663.0,30662.0,0.2458]
[1688338398866,0.263,30663.0,30662.0,0.26464945]
[1688338399373,0.016,30663.0,30662.0,0.51034945]
[1688338400665,0.016,30663.0,30662.0,0.26464945]
[1688338401071,0.016,30663.0,30662.0,0.2458]
[1688338402273,0.016,30663.0,30662.0,0.26464945]
[1688338403032,0.03422969,30663.0,30662.0,0.2458]
[1688338403595,0.05307914,30663.0,30662.0,0.2458]
[1688338404082,0.03484945,30663.0,30662.0,0.2458]
[1688338404682,0.05307914,30663.0,30662.0,0.3655]
[1688338404877,0.016,30663.0,30662.0,0.3655]
[1688338405290,0.03422969,30663.0,30662.0,0.3655]
[1688338405580,0.016,30663.0,30662.0,0.3655]
[1688338406277,0.05307914,30663.0,30662.0,0.3655]
[1688338407683,0.03422969,30663.0,30662.0,0.3655]
[1688338407878,0.05307914,30663.0,30662.0,0.3655]
[1688338408333,0.05307914,30663.0,30662.0,0.6938]
[1688338408986,0.016,30663.0,30662.0,0.6938]
[1688338409187,0.03422969,30663.0,30662.0,0.6938]
[1688338409878,0.01822969,30663.0,30662.0,0.6938]
[1688338410452,0.37964945,30664.0,30662.0,0.6938]
[1688338410590,0.39787914,30664.0,30662.0,0.6938]
[1688338410781,0.37964945,30664.0,30662.0,0.6938]
[1688338410983,0.03707914,30663.0,30662.0,0.6938]
[1688338411181,0.3608,30664.0,30662.0,0.6938]
[1688338411384,0.005109,30663.0,30662.0,0.6938]
[1688338412292,0.005109,30663.0,30662.0,0.71264945]
[1688338414194,0.00048719,30665.0,30663.0,0.3638]
[1688338414486,0.00048719,30665.0,30664.0,0.3632]
[1688338414696,0.00048719,30665.0,30664.0,0.38204945]
[1688338415387,0.00048719,30665.0,30664.0,0.3632]
[1688338415891,0.01871688,30665.0,30664.0,0.3632]
[1688338416088,0.00048719,30665.0,30664.0,0.3632]
[1688338416280,0.01871688,30665.0,30664.0,0.3632]
[1688338416482,0.00048719,30665.0,30664.0,0.3632]
[1688338417384,0.00048719,30665.0,30664.0,0.38204945]
[1688338419092,0.00048719,30665.0,30664.0,0.3632]
[1688338419497,0.01933664,30665.0,30664.0,0.3632]
[1688338419684,0.03756633,30665.0,30664.0,0.3632]
[1688338420189,0.01933664,30665.0,30664.0,0.3632]
[1688338420481,0.00048719,30665.0,30664.0,0.3632]
[1688338420692,0.04940719,30665.0,30664.0,0.382768]
[1688338420902,0.06763688,30665.0,30664.0,0.382768]
[1688338421991,0.04940719,30665.0,30664.0,0.382768]
[1688338422222,0.06763688,30665.0,30664.0,0.382768]
[1688338422383,0.04940719,30665.0,30664.0,0.382768]
[1688338422782,0.08648633,30665.0,30664.0,0.3632]
[1688338422992,0.08648633,30665.0,30663.0,0.3655]
[1688338423184,0.04940719,30665.0,30663.0,0.3655]
[1688338423410,0.03707914,30664.0,30663.0,0.3655]
[1688338423699,0.05664714,30664.0,30663.0,0.3655]
[1688338424390,0.05664714,30664.0,30663.0,0.385069]
[1688338426497,0.06184194,30664.0,30663.0,0.385069]
[1688338426891,0.0247628,30664.0,30663.0,0.385069]
[1688338427796,0.04299249,30664.0,30663.0,0.385069]
[1688338428194,0.06184194,30664.0,30663.0,0.385069]
[1688338429398,0.05,30663.0,30653.0,0.058725]
[1688338429618,0.7237,30654.0,30649.0,0.019577]
[1688338429901,0.7237,30654.0,30647.0,0.382979]
[1688338429902,0.019578,30649.0,30647.0,0.382979]
[1688338430218,0.03780769,30649.0,30648.0,0.01884945]
[1688338430404,0.03780769,30649.0,30648.0,0.38434945]
[1688338430989,0.019578,30649.0,30648.0,0.40392745]
[1688338431304,0.05873,30651.0,30648.0,0.41042745]
[1688338431499,0.05873,30651.0,30650.0,0.3655]
[1688338431703,0.05873,30651.0,30650.0,0.385077]
[1688338432094,0.05873,30651.0,30650.0,0.40392645]
[1688338433307,0.41953,30651.0,30650.0,0.3655]
[1688338433798,0.45660914,30651.0,30650.0,0.3655]
[1688338434710,0.43837945,30651.0,30650.0,0.3655]
[1688338435705,0.45660914,30651.0,30650.0,0.3655]
[1688338436618,0.82210914,30651.0,30647.0,0.7160994]
[1688338436816,0.03707914,30650.0,30647.0,0.7160994]
[1688338437011,0.3655,30648.0,30647.0,0.3505994]
[1688338437206,0.76410769,30648.0,30647.0,0.3244]
[1688338437506,0.78295714,30648.0,30647.0,0.3244]
[1688338437912,0.76472745,30648.0,30647.0,0.3244]
[1688338438209,0.39922745,30648.0,30647.0,0.6899]
[1688338439011,0.39922745,30648.0,30647.0,0.709479]
[1688338440307,0.380378,30648.0,30647.0,0.709479]
[1688338441415,0.019578,30648.0,30647.0,0.72832845]
[1688338443738,0.048945,30650.0,30647.0,0.72832845]
[1688338443927,0.048945,30650.0,30649.0,0.3649]
[1688338444104,0.41953,30651.0,30649.0,0.384478]
[1688338444105,0.05873,30651.0,30649.0,0.384478]
[1688338444319,0.02006641,30652.0,30649.0,0.384478]
[1688338444320,0.02006641,30652.0,30650.0,0.01884945]
[1688338444509,0.02006641,30652.0,30651.0,0.019576]
[1688338445211,0.02006641,30652.0,30651.0,0.03842545]
[1688338447215,0.03891586,30652.0,30651.0,0.019576]
[1688338447808,0.02006641,30652.0,30651.0,0.019576]
[1688338448314,0.048938,30654.0,30651.0,0.40392545]
[1688338448514,0.048938,30654.0,30653.0,0.384475]
[1688338448916,0.048938,30654.0,30653.0,0.40332445]
[1688338451512,0.42858745,30654.0,30652.0,0.6757]
[1688338451723,0.01822969,30653.0,30652.0,0.6757]
[1688338451912,0.05665414,30653.0,30652.0,0.6757]
[1688338452519,0.05665414,30653.0,30652.0,0.3117]
[1688338453436,0.05665414,30653.0,30650.0,0.3655]
[1688338453625,0.7245,30651.0,30649.0,0.019575]
[1688338453827,0.7245,30651.0,30647.0,0.3655]
[1688338453828,0.019577,30650.0,30647.0,0.385079]
[1688338454527,0.380378,30648.0,30647.0,0.702479]
[1688338454830,0.745878,30648.0,30645.0,0.00048941]
[1688338455128,0.38328,30646.0,30645.0,0.00048941]
[1688338455555,0.42035914,30646.0,30645.0,0.00048941]
[1688338456127,0.05665914,30646.0,30645.0,0.00048941]
[1688338457129,0.05665914,30646.0,30645.0,0.36388941]
[1688338457130,0.01958,30646.0,30645.0,0.36388941]
[1688338457331,0.01958,30646.0,30645.0,0.38346941]
[1688338457656,0.01958,30646.0,30645.0,0.40231886]
[1688338458227,0.41954,30648.0,30645.0,0.40231886]
[1688338458423,0.41954,30648.0,30647.0,0.385079]
[1688338458631,0.43838945,30648.0,30647.0,0.385079]
[1688338459336,0.45661914,30648.0,30647.0,0.385079]
[1688338459838,0.43838945,30648.0,30647.0,0.385079]
[1688338460832,0.41954,30648.0,30647.0,0.385079]
[1688338461344,0.41954,30648.0,30647.0,0.384479]
[1688338462545,0.41954,30648.0,30647.0,0.019579]
[1688338462740,0.43838945,30648.0,30647.0,0.019579]
[1688338464274,0.41954,30648.0,30647.0,0.019579]
[1688338464631,0.66404,30648.0,30647.0,0.266479]
[1688338464834,0.66644,30648.0,30647.0,0.266479]
[1688338465341,0.43838945,30648.0,30647.0,0.266479]
[1688338465642,0.41954,30648.0,30647.0,0.28532845]
[1688338466236,0.3608,30648.0,30647.0,0.28532845]
[1688338468546,0.02006373,30651.0,30647.0,0.28532845]
[1688338468735,0.00048773,30651.0,30650.0,0.2469]
[1688338468940,0.00048773,30651.0,30650.0,0.266477]
[1688338469348,0.00048773,30651.0,30650.0,0.28532645]
[1688338472959,0.058717,30658.0,30652.0,1.0]
[1688338473146,0.058717,30658.0,30657.0,0.251472]
[1688338473660,0.058717,30658.0,30657.0,0.27032145]
[1688338473858,0.058717,30658.0,30657.0,0.58402145]
[1688338475850,0.27979871,30659.0,30657.0,0.58402145]
[1688338476045,0.27979871,30659.0,30658.0,0.26574945]
[1688338476242,0.019572,30659.0,30658.0,0.28532145]
[1688338476952,0.019572,30659.0,30658.0,0.266472]
[1688338477946,0.05665114,30659.0,30658.0,0.266472]
[1688338478159,0.03842145,30659.0,30658.0,0.266472]
[1688338478350,0.019572,30659.0,30658.0,0.266472]
[1688338478775,0.30355114,30659.0,30658.0,0.2469]
[1688338478958,0.56377785,30659.0,30658.0,0.2469]
[1688338479159,0.63126135,30659.0,30658.0,0.2469]
[1688338479350,0.38436135,30659.0,30658.0,0.2469]
[1688338479551,0.63126135,30659.0,30658.0,0.2469]
[1688338479757,0.30355114,30659.0,30658.0,0.2469]
[1688338480062,0.30355114,30659.0,30658.0,0.266472]
[1688338480063,0.019572,30659.0,30658.0,0.266472]
[1688338480549,0.019572,30659.0,30658.0,0.28532145]
[1688338481154,0.38736889,30660.0,30658.0,0.28532145]
[1688338481414,0.38736889,30660.0,30659.0,0.26574945]
[1688338481555,0.02656889,30660.0,30659.0,0.28532045]
[1688338482055,0.67973971,30662.0,30659.0,0.28532045]
[1688338482253,0.67973971,30662.0,30661.0,0.26607]
[1688338482466,0.419513,30662.0,30661.0,0.26607]
[1688338483056,0.419513,30662.0,30661.0,0.28491945]
[1688338484665,0.31892971,30665.0,30662.0,0.2469]
[1688338484863,0.058703,30665.0,30664.0,0.2457]
[1688338485059,0.058703,30665.0,30664.0,0.265268]
[1688338485364,0.058703,30665.0,30664.0,0.28411745]
[1688338486458,0.06263669,30665.0,30664.0,0.28411745]
[1688338486851,0.08148614,30665.0,30664.0,0.265268]
[1688338487551,0.06263669,30665.0,30664.0,0.265268]
[1688338487959,0.06263669,30665.0,30664.0,0.28411745]
[1688338488551,0.06263669,30665.0,30664.0,0.265268]
[1688338489363,0.08935992,30665.0,30664.0,0.265268]
[1688338489561,0.34958663,30665.0,30664.0,0.265268]
[1688338489995,0.10758961,30665.0,30664.0,0.265268]
[1688338490162,0.08935992,30665.0,30664.0,0.265268]
[1688338490662,0.08935992,30665.0,30664.0,0.28411745]
[1688338492458,0.06263669,30665.0,30664.0,0.28411745]
[1688338494269,0.00393369,30665.0,30664.0,0.28411745]
[1688338494571,0.019566,30668.0,30664.0,0.28411745]
[1688338494871,0.019566,30668.0,30667.0,0.2469]
[1688338495068,0.019566,30668.0,30667.0,0.266466]
[1688338495281,0.419495,30670.0,30667.0,0.266466]
[1688338495569,0.419495,30670.0,30669.0,0.2315]
[1688338495771,0.419495,30670.0,30669.0,0.251065]
[1688338495967,0.419495,30670.0,30669.0,0.26991445]
[1688338496969,0.058695,30670.0,30669.0,0.26991445]
[1688338497494,0.069564,30671.0,30669.0,0.26991445]
[1688338497668,0.069564,30671.0,30670.0,0.28531345]
[1688338498872,0.019564,30671.0,30670.0,0.28531345]
[1688338499277,0.019564,30671.0,30670.0,0.53221345]
[1688338499466,0.019564,30671.0,30670.0,0.85251345]
[1688338501467,0.02588697,30671.0,30670.0,0.85251345]
[1688338502185,0.02588697,30671.0,30670.0,0.60561345]
[1688338503775,0.04411666,30671.0,30670.0,0.586764]
[1688338503991,0.04411666,30671.0,30670.0,0.2469]
[1688338504280,0.30986611,30671.0,30670.0,0.2465]
[1688338507993,1.03146611,30671.0,30670.0,0.2465]
[1688338509485,1.03146611,30671.0,30666.0,0.02604111]
[1688338509486,0.0065,30670.0,30666.0,0.02604111]
[1688338509786,0.627267,30667.0,30666.0,0.00048908]
[1688338510180,0.66900765,30667.0,30666.0,0.00048908]
[1688338512876,0.40387796,30667.0,30666.0,0.24738908]
[1688338513085,0.42210765,30667.0,30666.0,0.24738908]
[1688338513984,0.40610765,30667.0,30666.0,0.24738908]
[1688338514190,0.65300765,30667.0,30666.0,0.00048908]
[1688338514685,0.65950765,30667.0,30666.0,0.00048908]
[1688338515390,0.64350765,30667.0,30666.0,0.00048908]
[1688338516385,0.63700765,30667.0,30666.0,0.00048908]
[1688338517781,0.64350765,30667.0,30666.0,0.00048908]
[1688338517992,0.04357914,30666.0,30662.0,0.27263586]
[1688338518183,0.6077,30663.0,30662.0,0.27263586]
[1688338518495,0.63187335,30663.0,30662.0,0.2469]
[1688338518691,0.66895249,30663.0,30662.0,0.2469]
[1688338522014,0.05,30662.0,30659.0,0.00048919]
[1688338522307,0.6053,30660.0,30656.0,0.02565873]
[1688338522504,0.6077,30657.0,30656.0,0.02565873]
[1688338522705,0.66719148,30657.0,30655.0,0.2469]
[1688338522905,0.2463,30656.0,30655.0,0.2469]
[1688338523105,0.30295514,30656.0,30655.0,0.2469]
[1688338523908,0.30295514,30656.0,30655.0,0.2619]
[1688338524112,0.30295514,30656.0,30655.0,0.28863449]
[1688338524302,0.30295514,30656.0,30655.0,0.30821049]
[1688338524811,0.05,30653.0,30652.0,0.0004893]
[1688338525035,0.05,30653.0,30643.0,0.019584]
[1688338525036,0.742578,30653.0,30643.0,0.019584]
[1688338525310,0.019583,30644.0,30643.0,0.019584]
[1688338525516,0.26766547,30644.0,30643.0,0.019584]
[1688338526105,0.26766547,30644.0,30642.0,0.2469]
[1688338526303,0.2469,30643.0,30642.0,0.26394721]
[1688338526498,0.28471369,30643.0,30642.0,0.2469]
[1688338529154,0.28471369,30643.0,30641.0,0.02646068]
[1688338529308,0.266484,30643.0,30642.0,0.2469]
[1688338530015,0.28471369,30643.0,30642.0,0.2469]
[1688338530221,0.28471369,30643.0,30640.0,0.0004895]
[1688338530396,0.627285,30641.0,30640.0,0.0004895]
[1688338530610,0.64551469,30641.0,30640.0,0.02689751]
[1688338530811,0.64551469,30641.0,30640.0,0.0004895]
[1688338532012,0.64551469,30641.0,30640.0,0.00098474]
[1688338532601,0.28471469,30641.0,30640.0,0.24668474]
[1688338532804,0.266485,30641.0,30640.0,0.24668474]
[1688338533608,0.28471469,30641.0,30640.0,0.24668474]
[1688338537311,0.016085,30641.0,30640.0,0.26746674]
[1688338537610,0.048963,30642.0,30640.0,0.26746674]
[1688338537820,0.058756,30643.0,30641.0,0.633782]
[1688338538013,0.058756,30643.0,30642.0,0.2469]
[1688338538209,0.058756,30643.0,30642.0,0.266481]
[1688338538403,0.058756,30643.0,30642.0,0.30237766]
[1688338539226,0.058756,30643.0,30642.0,0.30286848]
[1688338539511,0.019581,30644.0,30642.0,0.30936848]
[1688338539722,0.019581,30644.0,30643.0,0.03589666]
[1688338539928,0.019581,30644.0,30643.0,0.05547766]
[1688338540807,0.0004895,30647.0,30643.0,0.05547766]
[1688338540808,0.0004895,30647.0,30644.0,0.4914]
[1688338541100,0.0200675,30647.0,30646.0,0.266479]
[1688338541509,0.0200675,30647.0,30646.0,0.30237566]